Workbook

Sheet K
A2: ALOITTAVAN RATSASTUSKOULUN TILINPÄÄTÖSTEN ENNAKOINTI VIIDELLE VUODELLE
A4: Tällä laskentamallilla voit helposti laatia perustettavalle uudelle ratsastuskoulullesi alustavan taloudellisen laskelman viiden ensimmäisen vuoden toiminnasta. Ratsastuskoulun lisäksi sinulla on mahdollisuus sisällyttää laskelmiin täysihoitoon otettuja hevosia. Syötä laskentaa varten malliin ensin tiedot ratsastuskoululle hankittavasta omaisuudesta, yrityksesi veroprosentista, otettavien velkojen korosta ja velka-ajan pituudesta, sinun voitto-osuudestasi, rahoitusomaisuuden riittävästä määrästä sekä arvioi liikevaihdon ja kiinteiden kulujen kasvuprosentit. Syötä tämän jälkeen yrityksesi ensimmäiselle toimintavuodelle ennakoimasi tulot ja kulut, investoinnit ja rahoitus. Tässä laskentamallissa ei oteta huomioon arvonlisäveroa.
A6: Taulukossa on valmiina esimerkkinä kuvitteellisen ratsastuskoulun luvut. Tässä omissa tiloissa toimivassa ratsastuskoulussa on opetuskäytössä 10 hevosta, jonka lisäksi tallilla on 5 hevosta täysihoidossa. Ratsastuskoulu rahoittaa aloittavan toimintansa lyhytaikaisella ja pitkäaikaisella velalla ja omalla pääomalla. Muuta taulukon vihreissä ruuduissa olevat esimerkkiluvut oman yrityksesi arvioiduiksi luvuiksi. Pohdi antamiasi lukuja mahdollisimman huolellisesti.
A8: Syötä ensin laskelmissa käytettävät lukuarvot pitkäaikaisen omaisuuden käyttöajoille, verolle ja muille tekijöille:
A9: Pitkäaikaisen omaisuuden keskimääräinen käyttöaika: | F9: Käyttöaika vuosina | G9: Poisto-osuus
A10: Miten monta vuotta arvioit ratsastuskoululle hankittavien hevosten keskimäärin osallistuvan opetustunneille? | F10: 10 | G10: =1/F10 -> 0.1
A11: Miten monta vuotta arvioit hankkimiesi rakennusten ja rakennelmien (esim. maneesi, talli) toimivan opetuskäytössä? | F11: 15 | G11: =1/F11 -> 0.06666666667
A12: Miten monta vuotta arvioit hankkimiesi koneiden ja kaluston (esim. traktori, hara, aura) toimivan opetuskäytössä? | F12: 4 | G12: =1/F12 -> 0.25
A13: Miten pitkäaikaiseen käyttöön hankkimasi aineeton käyttöomaisuus (esim. tietokoneohjelmat) on tarkoitettu? | F13: 5 | G13: =1/F13 -> 0.2
A14: Miten pitkäaikaiseen käyttöön hankkimasi muu käyttöomaisuus (esim. työkalut, muu irtaimisto) on tarkoitettu? | F14: 2 | G14: =1/F14 -> 0.5
A16: Muut tiedot: | F16: Muut tiedot | G16: %-osuus
A17: Kuinka monta prosenttia yrityksesi maksaa veroja verotettavasta tuloksesta? (esim. osakeyhtiöillä verokanta on 20 % 2021) | F17: 20 | G17: =+F17/100 -> 0.2
A18: Miten suureksi arvioit yrityksellesi mahdollisesti ottamasi lyhytaikaisen (alle vuoden mittaisen) velan vuotuisen korkoprosentin? | F18: 3 | G18: =+F18/100 -> 0.03
A19: Miten suureksi arvioit yrityksellesi mahdollisesti ottamasi pitkäaikaisen (yli vuoden mittaisen) velan vuotuisen korkoprosentin? | F19: 2 | G19: =+F19/100 -> 0.02
A20: Miten monta vuotta pitkäaikaista velkaa maksetaan takaisin? (mallissa oletetaan yhtä suuret vuosittaiset lyhennykset) | F20: 5 | G20: 5
A21: Miten paljon aiot nostaa yrityksestä voitto-osuutta (esim. osinkoja) prosentteina yrityksen tuottamista kertyneistä voitoista? | F21: 5 | G21: =+F21/100 -> 0.05
A22: Miten paljon vähintään aiot pitää rahaa kassassa ja pankkitilillä toiminnan pyörittämistä varten prosentteina liikevaihdosta? | F22: 5 | G22: =+F22/100 -> 0.05
A23: Miten monta prosenttia arvioit yrityksesi liikevaihdon kasvavan vuosittain viiden vuoden aikana? | F23: 5 | G23: =+F23/100 -> 0.05
A24: Miten monta prosenttia arvioit yrityksesi kiinteiden kustannusten kasvavan vuosittain viiden vuoden aikana? | F24: 3 | G24: =+F24/100 -> 0.03
A26: Laadi sen jälkeen arvio ratsastuskoulun ensimmäisen vuoden liikevaihdosta.
A28: Miten korkeaksi arvioit ratsastuskoulusi ratsastustunnin keskimääräisen hinnan? | F28: 27 | G28: euroa | H28: =+IF(F28<0,"Luvun pitää olla positiivinen","") -> 
A29: Kuinka monta hevosta sinulla on ratsastuskoulutoiminnassa? | F29: 10 | G29: hevosta | H29: =+IF(F29<0,"Luvun pitää olla positiivinen","") -> 
A30: Kuinka monta tuntia keskimäärin hevonen osallistuu ratsastustunnille viikottain? (vuodessa on 52 viikkoa) | F30: 15 | G30: tuntia viikossa
A31: Montako hevosta on keskimäärin yhdessä opetusryhmässä? | F31: 6 | G31: hevosta
A32: Miten täysiksi arvioit opetusryhmät keskimäärin prosentteina 0 - 100 % (täydet ryhmät)? | F32: 85 | G32: % | H32: =+IF(F32<0,"Luvun pitää olla positiivinen",IF(F32>100,"Luvun pitää olla alle 100","")) -> 
A33: Miten monta hevosta keskimäärin on koulun hevosten lisäksi tallissa täysihoidossa? | F33: 5 | G33: hevosta | H33: =+IF(F33<0,"Luvun pitää olla positiivinen",IF(F33>100,"Luvun pitää olla alle 100","")) -> 
A34: Miten paljon arvioit täysihoidon hinnaksi hevosta kohti kuukaudessa? | F34: 600 | G34: euroa / kk
A35: Esittämiesi lukujen perusteella ensimmäisen vuoden liikevaihto on siten seuraava: | F35: =+(F32/100)*(F28*F29*F30*52)+F33*F34*12 -> 215010 | G35: euroa
A37: Ratsastuskoulun ensimmäisen vuoden ennakoitu liikevaihto on: | F37: =+F35 -> 215010 | G37: euroa
A39: Kuinka monta ratsastustuntia tarkoituksesi on itse pitää (ilman palkanmaksua) ratsastuskoulun tunneista keskimäärin viikossa? | F39: 0 | G39: tuntia viikossa
A41: Laadi sitten arvio yrityksen kulujen määrästä.
A43: Muuttuvat kulut:
A44: Millaisiksi arvioit ensimmäisen vuoden muuttuvat kulut, jotka riippuvat suoraan hevosten määrästä? | F44: Vuodessa: | G44: Liikevaih-dosta, %
A45: Miten paljon kulut karkearehusta ovat hevosta kohti kuukaudessa (euroa / hevonen / kuukausi)? | E45: 100 | F45: =+E45*(12*$F$29+12*$F$33) -> 18000 | G45: =100*F45/$F$37 -> 8.371703642 | H45: =+IF(E45<0,"Kulujen määrä ei saa olla negatiivinen","") -> 
A46: Miten paljon kulut väkirehusta ovat hevosta kohti kuukaudessa (euroa / hevonen / kuukausi)? | E46: 20 | F46: =+E46*(12*$F$29+12*$F$33) -> 3600 | G46: 1.674340728 | H46: =+IF(E46<0,"Kulujen määrä ei saa olla negatiivinen","") -> 
A47: Miten paljon kulut kivennäisistä ovat hevosta kohti kuukaudessa (euroa / hevonen / kuukausi)? | E47: 20 | F47: =+E47*(12*$F$29+12*$F$33) -> 3600 | G47: 1.674340728
A48: Miten paljon muut ruokintakulut ovat hevosta kohti kuukaudessa (euroa / hevonen / kuukausi)? | E48: 20 | F48: 3600 | G48: 1.674340728
A49: Miten paljon kuivikekulut ovat hevosta kohti kuukaudessa (euroa / hevonen / kuukausi)? | E49: 50 | F49: 9000 | G49: 4.185851821
A50: Miten paljon kengityskulut ovat hevosta kohti kuukaudessa (euroa / hevonen / kuukausi)? | E50: 50 | F50: =+E50*12*$F$29 -> 6000 | G50: 2.790567881
A51: Miten paljon madotuskulut ovat hevosta kohti vuodessa (euroa / hevonen / vuosi)? | E51: 50 | F51: =+E51*$F$29 -> 500 | G51: 0.2325473234
A52: Miten paljon rokotuskulut ovat hevosta kohti vuodessa (euroa / hevonen / vuosi)? | E52: 100 | F52: =+E52*$F$29 -> 1000 | G52: 0.4650946468
A53: Miten paljon raspauskulut ovat hevosta kohti vuodessa (euroa / hevonen / vuosi)? | E53: 100 | F53: =+E53*$F$29 -> 1000 | G53: 0.4650946468
A54: Miten paljon eläinlääkärikulut ovat hevosta kohti vuodessa (euroa / hevonen / vuosi)? | E54: 200 | F54: =+E54*$F$29 -> 2000 | G54: 0.9301892935
A55: Miten paljon varustekulut (esim. satulat, suitset) ovat hevosta kohti vuodessa (euroa / hevonen / vuosi)? | E55: 500 | F55: =+E55*$F$29 -> 5000 | G55: 2.325473234
A56: Miten paljon ratsastuksen opettajien palkat lisineen ovat opetustuntia kohti (tuntipalkka, euroa / tunti)? | E56: 35 | F56: =+E56*((F29*F30*52)/F31-F39*52) -> 45500 | G56: 21.16180643
A57: Miten paljon täysihoidon muuttuvat palkat lisineen (esim. hoitaja) ovat täysihoidossa olevaa hevosta kohti kuukaudessa? (euroa / hevonen / kuukausi) | E57: 200 | F57: =+E57*$F$33*12 -> 12000 | G57: 5.581135761
A58: Miten paljon muut muuttuvat kulut (esim. tarvikkeet, vakuutukset) ovat koulun hevosta kohti vuodessa (euroa / hevonen / vuosi)? | E58: 200 | F58: =+E58*$F$29 -> 2000 | G58: 0.9301892935
A59: Ensimmäisen vuoden ennakoitu myyntikate (liikevaihto - muuttuvat kulut) on: | F59: =+F37-SUM(F45:F58) -> 102210 | G59: 47.53732385
A61: Kiinteät kulut: | D61: =+IF(B61<0," Huom! Luvun pitää olla positiivinen tai nolla!","") -> 
A62: Millaisiksi arvioit ensimmäisen vuoden kiinteät kulut?
A63: Kuinka paljon arvioit vuokrakuluiksi kuukaudessa käyttämistäsi tiloista? (euroa / kuukausi) (jos vuokratiloja) | E63: 0 | F63: =12*E63 -> 0 | G63: =100*F63/$F$37 -> 0 | H63: =+IF(E63<0,"Kulujen määrä ei saa olla negatiivinen","") -> 
A64: Kuinka paljon arvioit sähkön kulutuksen kuluiksi kuukaudessa? (euroa / kuukausi) | E64: 200 | F64: =12*E64 -> 2400 | G64: 1.116227152
A65: Kuinka paljon arvioit veden kulutuksen kuluiksi kuukaudessa? (euroa / kuukausi) | E65: 100 | F65: 1200 | G65: 0.5581135761
A66: Kuinka paljon arvioit pohjien huollon kuluiksi kuukaudessa (maneesi ja ratsastuskenttä)? (euroa / kuukausi) | E66: 250 | F66: 3000 | G66: 1.39528394
A67: Kuinka paljon arvioit lantalan tyhjennyksen kuluiksi kuukaudessa? (euroa / kuukausi) | E67: 100 | F67: 1200 | G67: 0.5581135761
A68: Kuinka suuriksi arvioit kiinteät palkkakustannukset lisineen (esim. tallityöntekijät, kirjanpitäjä) kuukaudessa? | E68: 2000 | F68: 24000 | G68: 11.16227152
A69: Kuinka suuriksi arvioit muut edellä mainitsemattomat kiinteät kulut kuukaudessa? (euroa / kuukausi) | E69: 100 | F69: 1200 | G69: 0.5581135761
A71: Ensimmäisen vuoden ennakoitu käyttökate (liikevaihto - muuttuvat kulut - kiinteät kulut) on: | F71: =+F59-SUM(F63:F69) -> 69210 | G71: 32.1892005
A73: Esittämiesi lukujen perusteella arvioit ensimmäisen vuoden kuluiksi yhteensä: | F73: =+SUM(F45:F58)+SUM(F63:F69) -> 145800 | G73: 67.8107995
A74: =+IF(F74>0,"Esittämiesi lukujen perusteella liikevaihdon ja muuttuvien kulujen erotus (myyntikate) on:","Muuta antamiasi tietoja, sillä liikevaihdon ja muuttuvien kulujen erotus on negatiivinen:") -> Esittämiesi lukujen perusteella liikevaihdon ja muuttuvien kulujen erotus (myyntikate) on: | F74: =+F59 -> 102210 | G74: 47.53732385
A75: =+IF(F75>0,"Esittämiesi lukujen perusteella liikevaihdon ja kulujen erotus (käyttökate) on:","Muuta antamiasi tietoja, sillä liikevaihdon ja kulujen erotus on negatiivinen:") -> Esittämiesi lukujen perusteella liikevaihdon ja kulujen erotus (käyttökate) on: | F75: =+F71 -> 69210 | G75: 32.1892005
A77: Investoinnit (pitkäaikaiset sijoitukset) ratsastuskouluun:
A78: Miten paljon aiot investoida euroissa ratsastuskouluun ensimmäisenä vuonna, kun pitkäaikainen omaisuus hankitaan?
A79: Miten paljon aiot sijoittaa euroja hevosten hankkimiseen ratsastuskoulun toimintaa varten? | F79: 30000 | G79: =100*F79/$F$37 -> 13.9528394 | H79: =+IF(F79<0,"Investoitu määrä ei saa olla negatiivinen","") -> 
A80: Miten paljon aiot sijoittaa euroja maa- ja vesialueisiin? (esim. tontin ostamiseen) | F80: 40000 | G80: 18.60378587 | H80: =+IF(F80<0,"Investoitu määrä ei saa olla negatiivinen","") -> 
A81: Miten paljon aiot sijoittaa euroja rakennuksiin ja rakennelmiin? (esim. talli ja maneesi) | F81: 200000 | G81: 93.01892935
A82: Miten paljon aiot sijoittaa euroja koneisiin ja kalustoon (esim. traktori, hara, aura)? | F82: 50000 | G82: 23.25473234
A83: Miten paljon aiot sijoittaa euroja aineettomaan käyttöomaisuuteen (esim. tietokoneohjelmat)? | F83: 1000 | G83: 0.4650946468
A84: Miten paljon aiot sijoittaa euroja muuhun käyttöomaisuuteen (esim. työkalut, muu irtaimisto)? | F84: 1000 | G84: 0.4650946468
A85: Esittämiesi lukujen perusteella sijoitat euroja yrityksesi omaisuuteen yhteensä: | F85: =+SUM(F79:F84) -> 322000 | G85: 149.7604763
A87: Ratsastuskoulun toiminnan rahoitus:
A88: Millä tavalla aiot rahoittaa ratsastuskoulun ensimmäisen toimintavuoden investoinnit ja toiminnan?
A89: Miten paljon aiot ottaa lyhytaikaista velkaa toimintaa varten? (euroja) | D89: =+IF(C89<0," Huom! Luvun pitää olla positiivinen tai nolla!","") ->  | F89: 20000 | G89: euroa | H89: =+IF(F89<0,"Rahoituksen määrä ei saa olla negatiivinen","") -> 
A90: Miten paljon aiot ottaa pitkäaikaista velkaa investointien rahoittamista varten? (euroja) | D90: =+IF(C90<0," Huom! Luvun pitää olla positiivinen tai nolla!","") ->  | F90: 270000 | G90: euroa | H90: =+IF(F90<0,"Rahoituksen määrä ei saa olla negatiivinen","") -> 
A91: Miten paljon aiot sijoittaa toimintaan omaa pääomaa? (euroja) | F91: 10000 | G91: euroa
A92: Esittämiesi lukujen perusteella otat ensimmäisenä vuonna velkaa ja sijoitat omaa pääomaa yritykseesi yhteensä: | F92: =+SUM(F89:F91) -> 300000 | G92: euroa
A94: Sijoittamasi oman pääoman osuus rahoituksesta ilman toiminnan tuottamaa tulorahoitusta on: | F94: =100*F91/F92 -> 3.333333333 | G94: %
A95: Sijoitetun oman pääoman ja pitkäaikaisen velan osuus investointien rahoituksesta on: | F95: =100*(F90+F91)/F85 -> 86.95652174 | G95: %
A98: MALLIN TUOTTAMAT TILINPÄÄTÖSLASKELMAT VIIDELLE VUODELLE
A100: =+T!B3 -> ENNAKOITU TULOSLASKELMA
B101: =+T!C4 -> Ennakoidut viisi vuotta:
B102: =+T!C5 -> 1 | C102: =+T!D5 -> 2 | D102: =+T!E5 -> 3 | E102: =+T!F5 -> 4 | F102: =+T!G5 -> 5
A103: =+T!B6 -> Liikevaihto | B103: =+T!C6 -> 215010 | C103: =+T!D6 -> 225760.5 | D103: =+T!E6 -> 237048.525 | E103: =+T!F6 -> 248900.9513 | F103: =+T!G6 -> 261345.9988
A104: =+T!B7 -> - Muuttuvat kulut
A105: =+T!B8 -> Karkearehu | B105: =+T!C8 -> 18000 | C105: =+T!D8 -> 18900 | D105: =+T!E8 -> 19845 | E105: =+T!F8 -> 20837.25 | F105: =+T!G8 -> 21879.1125
A106: =+T!B9 -> Väkirehu | B106: =+T!C9 -> 3600 | C106: =+T!D9 -> 3780 | D106: =+T!E9 -> 3969 | E106: =+T!F9 -> 4167.45 | F106: =+T!G9 -> 4375.8225
A107: =+T!B10 -> Kivennäiset | B107: =+T!C10 -> 3600 | C107: =+T!D10 -> 3780 | D107: =+T!E10 -> 3969 | E107: =+T!F10 -> 4167.45 | F107: =+T!G10 -> 4375.8225
A108: =+T!B11 -> Muut ruokintakustannukset | B108: =+T!C11 -> 3600 | C108: =+T!D11 -> 3780 | D108: =+T!E11 -> 3969 | E108: =+T!F11 -> 4167.45 | F108: =+T!G11 -> 4375.8225
A109: =+T!B12 -> Kuivikekustannukset | B109: =+T!C12 -> 9000 | C109: =+T!D12 -> 9450 | D109: =+T!E12 -> 9922.5 | E109: =+T!F12 -> 10418.625 | F109: =+T!G12 -> 10939.55625
A110: =+T!B13 -> Kengitykset | B110: =+T!C13 -> 6000 | C110: =+T!D13 -> 6300 | D110: =+T!E13 -> 6615 | E110: =+T!F13 -> 6945.75 | F110: =+T!G13 -> 7293.0375
A111: =+T!B14 -> Madotukset | B111: =+T!C14 -> 500 | C111: =+T!D14 -> 525 | D111: =+T!E14 -> 551.25 | E111: =+T!F14 -> 578.8125 | F111: =+T!G14 -> 607.753125
A112: =+T!B15 -> Rokotukset | B112: =+T!C15 -> 1000 | C112: =+T!D15 -> 1050 | D112: =+T!E15 -> 1102.5 | E112: =+T!F15 -> 1157.625 | F112: =+T!G15 -> 1215.50625
A113: =+T!B16 -> Raspaukset | B113: =+T!C16 -> 1000 | C113: =+T!D16 -> 1050 | D113: =+T!E16 -> 1102.5 | E113: =+T!F16 -> 1157.625 | F113: =+T!G16 -> 1215.50625
A114: =+T!B17 -> Muut eläinlääkärikulut | B114: =+T!C17 -> 2000 | C114: =+T!D17 -> 2100 | D114: =+T!E17 -> 2205 | E114: =+T!F17 -> 2315.25 | F114: =+T!G17 -> 2431.0125
A115: =+T!B18 -> Varustekustannukset | B115: =+T!C18 -> 5000 | C115: =+T!D18 -> 5250 | D115: =+T!E18 -> 5512.5 | E115: =+T!F18 -> 5788.125 | F115: =+T!G18 -> 6077.53125
A116: =+T!B19 -> Ratsastuksen opettajien palkat lisineen | B116: =+T!C19 -> 45500 | C116: =+T!D19 -> 47775 | D116: =+T!E19 -> 50163.75 | E116: =+T!F19 -> 52671.9375 | F116: =+T!G19 -> 55305.53438
A117: =+T!B20 -> Täyshoitohevosten hoitajien palkat lisineen | B117: =+T!C20 -> 12000 | C117: =+T!D20 -> 12600 | D117: =+T!E20 -> 13230 | E117: =+T!F20 -> 13891.5 | F117: =+T!G20 -> 14586.075
A118: =+T!B21 -> Muut muuttuvat kulut | B118: =+T!C21 -> 2000 | C118: =+T!D21 -> 2100 | D118: =+T!E21 -> 2205 | E118: =+T!F21 -> 2315.25 | F118: =+T!G21 -> 2431.0125
A119: =+T!B22 -> = Myyntikate | B119: =+T!C22 -> 102210 | C119: =+T!D22 -> 107320.5 | D119: =+T!E22 -> 112686.525 | E119: =+T!F22 -> 118320.8513 | F119: =+T!G22 -> 124236.8938
A120: =+T!B23 -> - Kiinteät kulut
A121: =+T!B24 -> Vuokrakulut | B121: =+T!C24 -> 0 | C121: =+T!D24 -> 0 | D121: =+T!E24 -> 0 | E121: =+T!F24 -> 0 | F121: =+T!G24 -> 0
A122: =+T!B25 -> Sähkökulut | B122: =+T!C25 -> 2400 | C122: =+T!D25 -> 2472 | D122: =+T!E25 -> 2546.16 | E122: =+T!F25 -> 2622.5448 | F122: =+T!G25 -> 2701.221144
A123: =+T!B26 -> Vesikulut | B123: =+T!C26 -> 1200 | C123: =+T!D26 -> 1236 | D123: =+T!E26 -> 1273.08 | E123: =+T!F26 -> 1311.2724 | F123: =+T!G26 -> 1350.610572
A124: =+T!B27 -> Pohjien huolto | B124: =+T!C27 -> 3000 | C124: =+T!D27 -> 3090 | D124: =+T!E27 -> 3182.7 | E124: =+T!F27 -> 3278.181 | F124: =+T!G27 -> 3376.52643
A125: =+T!B28 -> Lantalan tyhjennys | B125: =+T!C28 -> 1200 | C125: =+T!D28 -> 1236 | D125: =+T!E28 -> 1273.08 | E125: =+T!F28 -> 1311.2724 | F125: =+T!G28 -> 1350.610572
A126: =+T!B29 -> Kiinteät palkkakustannukset lisineen | B126: =+T!C29 -> 24000 | C126: =+T!D29 -> 24720 | D126: =+T!E29 -> 25461.6 | E126: =+T!F29 -> 26225.448 | F126: =+T!G29 -> 27012.21144
A127: =+T!B31 -> = Käyttökate | B127: =+T!C31 -> 69210 | C127: =+T!D31 -> 73330.5 | D127: =+T!E31 -> 77676.825 | E127: =+T!F31 -> 82260.86025 | F127: =+T!G31 -> 87095.10308
A128: =+T!B32 -> - Poistot
A129: =+T!B33 -> Hevosten hankinta | B129: =+T!C33 -> 3000 | C129: =+T!D33 -> 3000 | D129: =+T!E33 -> 3000 | E129: =+T!F33 -> 3000 | F129: =+T!G33 -> 3000
A130: =+T!B34 -> Maa- ja vesialueet | B130: =+T!C34 -> 0 | C130: =+T!D34 -> 0 | D130: =+T!E34 -> 0 | E130: =+T!F34 -> 0 | F130: =+T!G34 -> 0
A131: =+T!B35 -> Rakennukset ja rakennelmat | B131: =+T!C35 -> 13333.33333 | C131: =+T!D35 -> 13333.33333 | D131: =+T!E35 -> 13333.33333 | E131: =+T!F35 -> 13333.33333 | F131: =+T!G35 -> 13333.33333
A132: =+T!B36 -> Koneet ja kalusto | B132: =+T!C36 -> 12500 | C132: =+T!D36 -> 12500 | D132: =+T!E36 -> 12500 | E132: =+T!F36 -> 12500 | F132: =+T!G36 -> 0
A133: =+T!B37 -> Aineeton käyttöomaisuus | B133: =+T!C37 -> 200 | C133: =+T!D37 -> 200 | D133: =+T!E37 -> 200 | E133: =+T!F37 -> 200 | F133: =+T!G37 -> 200
A134: =+T!B38 -> Muu käyttöomaisuus | B134: =+T!C38 -> 500 | C134: =+T!D38 -> 500 | D134: =+T!E38 -> 0 | E134: =+T!F38 -> 0 | F134: =+T!G38 -> 0
A135: =+T!B39 -> = Liiketulos | B135: =+T!C39 -> 39676.66667 | C135: =+T!D39 -> 43797.16667 | D135: =+T!E39 -> 48643.49167 | E135: =+T!F39 -> 53227.52692 | F135: =+T!G39 -> 70561.76975
A136: =+T!B40 -> - Korkokulut | B136: =+T!C40 -> 6000 | C136: =+T!D40 -> 6000 | D136: =+T!E40 -> 4920 | E136: =+T!F40 -> 3840 | F136: =+T!G40 -> 2760
A137: =+T!B41 -> - Verot | B137: =+T!C41 -> 6735.333333 | C137: =+T!D41 -> 7559.433333 | D137: =+T!E41 -> 8744.698333 | E137: =+T!F41 -> 9877.505383 | F137: =+T!G41 -> 13560.35395
A138: =+T!B42 -> Tilikauden tulos | B138: =+T!C42 -> 26941.33333 | C138: =+T!D42 -> 30237.73333 | D138: =+T!E42 -> 34978.79333 | E138: =+T!F42 -> 39510.02153 | F138: =+T!G42 -> 54241.4158
A140: =+T!B44 -> ENNAKOITU TASE
B141: =+T!C45 -> Ennakoidut viisi vuotta:
B142: =+T!C46 -> 1 | C142: =+T!D46 -> 2 | D142: =+T!E46 -> 3 | E142: =+T!F46 -> 4 | F142: =+T!G46 -> 5
A143: =+T!B47 -> Taseen omaisuus
A144: =+T!B48 -> Lyhytaikainen:
A145: =+T!B49 -> Rahoitusomaisuus | B145: =+T!C49 -> 34474.66667 | C145: =+T!D49 -> 38898.66667 | D145: =+T!E49 -> 46119.19333 | E145: =+T!F49 -> 56261.58853 | F145: =+T!G49 -> 66879.92491
A146: =+T!B50 -> Pitkäaikainen:
A147: =+T!B51 -> Hevosten hankinta | B147: =+T!C51 -> 27000 | C147: =+T!D51 -> 24000 | D147: =+T!E51 -> 21000 | E147: =+T!F51 -> 18000 | F147: =+T!G51 -> 15000
A148: =+T!B52 -> Maa- ja vesialueet | B148: =+T!C52 -> 40000 | C148: =+T!D52 -> 40000 | D148: =+T!E52 -> 40000 | E148: =+T!F52 -> 40000 | F148: =+T!G52 -> 40000
A149: =+T!B53 -> Rakennukset ja rakennelmat | B149: =+T!C53 -> 186666.6667 | C149: =+T!D53 -> 173333.3333 | D149: =+T!E53 -> 160000 | E149: =+T!F53 -> 146666.6667 | F149: =+T!G53 -> 133333.3333
A150: =+T!B54 -> Koneet ja kalusto | B150: =+T!C54 -> 37500 | C150: =+T!D54 -> 25000 | D150: =+T!E54 -> 12500 | E150: =+T!F54 -> 0 | F150: =+T!G54 -> 0
A151: =+T!B55 -> Aineeton käyttöomaisuus | B151: =+T!C55 -> 800 | C151: =+T!D55 -> 600 | D151: =+T!E55 -> 400 | E151: =+T!F55 -> 200 | F151: =+T!G55 -> 0
A152: =+T!B56 -> Muu käyttöomaisuus | B152: =+T!C56 -> 500 | C152: =+T!D56 -> 0 | D152: =+T!E56 -> 0 | E152: =+T!F56 -> 0 | F152: =+T!G56 -> 0
A153: =+T!B57 -> Yhteensä | B153: =+T!C57 -> 326941.3333 | C153: =+T!D57 -> 301832 | D153: =+T!E57 -> 280019.1933 | E153: =+T!F57 -> 261128.2552 | F153: =+T!G57 -> 255213.2582
A155: =+T!B59 -> Taseen pääoma
A156: =+T!B60 -> Lyhytaikainen:
A157: =+T!B61 -> Lyhytaikaiset velat (maks. voitto-osuus) | B157: =+T!C61 -> 1347.066667 | C157: =+T!D61 -> 2791.6 | D157: =+T!E61 -> 4400.959667 | E157: =+T!F61 -> 6156.41276 | F157: =+T!G61 -> 8560.662912
A158: =+T!B62 -> Muu lyhytaikainen vieras pääoma | B158: =+T!C62 -> 20000 | C158: =+T!D62 -> 20000 | D158: =+T!E62 -> 20000 | E158: =+T!F62 -> 20000 | F158: =+T!G62 -> 20000
A159: =+T!B63 -> Pitkäaikainen:
A160: =+T!B64 -> Pitkäaikainen vieras pääoma | B160: =+T!C64 -> 270000 | C160: =+T!D64 -> 216000 | D160: =+T!E64 -> 162000 | E160: =+T!F64 -> 108000 | F160: =+T!G64 -> 54000
A161: =+T!B65 -> Sijoitettu oma pääoma | B161: =+T!C65 -> 10000 | C161: =+T!D65 -> 10000 | D161: =+T!E65 -> 10000 | E161: =+T!F65 -> 10000 | F161: =+T!G65 -> 10000
A162: =+T!B66 -> Kertyneet voittovarat ja muu oma pääoma | B162: =+T!C66 -> 25594.26667 | C162: =+T!D66 -> 53040.4 | D162: =+T!E66 -> 83618.23367 | E162: =+T!F66 -> 116971.8424 | F162: =+T!G66 -> 162652.5953
A163: =+T!B67 -> Yhteensä | B163: =+T!C67 -> 326941.3333 | C163: =+T!D67 -> 301832 | D163: =+T!E67 -> 280019.1933 | E163: =+T!F67 -> 261128.2552 | F163: =+T!G67 -> 255213.2582
A165: =+T!B69 -> ENNAKOIDUT TUNNUSLUVUT
B166: =+T!C70 -> Ennakoidut viisi vuotta:
B167: =+T!C71 -> 1 | C167: =+T!D71 -> 2 | D167: =+T!E71 -> 3 | E167: =+T!F71 -> 4 | F167: =+T!G71 -> 5
A168: =+T!B72 -> Koko
A169: =+T!B73 -> 1. Liikevaihto (Euro) | B169: =+T!C73 -> 215010 | C169: =+T!D73 -> 225760.5 | D169: =+T!E73 -> 237048.525 | E169: =+T!F73 -> 248900.9513 | F169: =+T!G73 -> 261345.9988
A170: =+T!B74 -> 2. Taseen loppusumma (Euro) | B170: =+T!C74 -> 326941.3333 | C170: =+T!D74 -> 301832 | D170: =+T!E74 -> 280019.1933 | E170: =+T!F74 -> 261128.2552 | F170: =+T!G74 -> 255213.2582
A171: =+T!B75 -> 3. Tilikauden tulos (Euro) | B171: =+T!C75 -> 26941.33333 | C171: =+T!D75 -> 30237.73333 | D171: =+T!E75 -> 34978.79333 | E171: =+T!F75 -> 39510.02153 | F171: =+T!G75 -> 54241.4158
A172: =+T!B76 -> 4. Voitto-osuus omistajalle (Euro) | B172: =+T!C76 -> 1347.066667 | C172: =+T!D76 -> 2791.6 | D172: =+T!E76 -> 4400.959667 | E172: =+T!F76 -> 6156.41276 | F172: =+T!G76 -> 8560.662912
A174: =+T!B78 -> Kasvu
A175: =+T!B79 -> 1. Liikevaihdon kasvu-% | C175: =+T!D79 -> 5 | D175: =+T!E79 -> 5 | E175: =+T!F79 -> 5 | F175: =+T!G79 -> 5
A176: =+T!B80 -> 2. Taseen loppusumman kasvu-% | C176: =+T!D80 -> -7.680073081 | D176: =+T!E80 -> -7.226803873 | E176: =+T!F80 -> -6.746301176 | F176: =+T!G80 -> -2.265169258
A177: =+T!B81 -> 3. Tilikauden tuloksen kasvu-% | C177: =+T!D81 -> 12.23547461 | D177: =+T!E81 -> 15.67928372 | E177: =+T!F81 -> 12.95421531 | F177: =+T!G81 -> 37.28520941
A179: =+T!B83 -> Kannattavuus
A180: =+T!B84 -> 1. Käyttökate / Liikevaihto (%) | B180: =+T!C84 -> 32.1892005 | C180: =+T!D84 -> 32.48154571 | D180: =+T!E84 -> 32.76832244 | E180: =+T!F84 -> 33.04963675 | F180: =+T!G84 -> 33.32559269
A181: =+T!B85 -> 2. Liiketulos / Liikevaihto (%) | B181: =+T!C85 -> 18.45340527 | C181: =+T!D85 -> 19.39983596 | D181: =+T!E85 -> 20.52047853 | E181: =+T!F85 -> 21.3850235 | F181: =+T!G85 -> 26.99936868
A182: =+T!B86 -> 3. Tilikauden tulos / Liikevaihto (%) | B182: =+T!C86 -> 12.53026991 | C182: =+T!D86 -> 13.39372181 | D182: =+T!E86 -> 14.75596329 | E182: =+T!F86 -> 15.8737929 | F182: =+T!G86 -> 20.75463793
A183: =+T!B87 -> 4. Sijoitetun pääoman tuotto-% | C183: =+T!D87 -> 13.39603232 | D183: =+T!E87 -> 16.11608168 | E183: =+T!F87 -> 19.00852805 | F183: =+T!G87 -> 27.02188229
A184: =+T!B88 -> 5. Oman pääoman tuotto-% | C184: =+T!D88 -> 84.95113445 | D184: =+T!E88 -> 55.48631248 | E184: =+T!F88 -> 42.20334008 | F184: =+T!G88 -> 42.71924764
A186: =+T!B90 -> Maksuvalmius
A187: =+T!B91 -> 1. Rahoitustulos / Liikevaihto | B187: =+T!C91 -> 26.26606514 | C187: =+T!D91 -> 26.47543156 | D187: =+T!E91 -> 27.0038072 | E187: =+T!F91 -> 27.53840615 | F187: =+T!G91 -> 27.08086194
A188: =+T!B92 -> 2. Quick ratio | B188: =+T!C92 -> 1.614960369 | C188: =+T!D92 -> 1.706710659 | D188: =+T!E92 -> 1.890056537 | E188: =+T!F92 -> 2.1509673 | F188: =+T!G92 -> 2.341679712
A190: =+T!B94 -> Vakavaraisuus
A191: =+T!B95 -> 1. Omavaraisuusaste | B191: =+T!C95 -> 10.88705007 | C191: =+T!D95 -> 20.8859233 | D191: =+T!E95 -> 33.43279171 | E191: =+T!F95 -> 48.62432154 | F191: =+T!G95 -> 67.6503237
A192: =+T!B96 -> 2. Rahoitustulos / Velat (%) | B192: =+T!C96 -> 19.38398327 | C192: =+T!D96 -> 25.03064039 | D192: =+T!E96 -> 34.34109287 | E192: =+T!F96 -> 51.09211961 | F192: =+T!G96 -> 85.72454076
A194: =+T!B98 -> Rahoitusriski: Taipumus kuulua konkurssiyritysten (1) tai toimivien yritysten (0) joukkoon
A195: =+T!B99 -> 1. Kolmen muuttujan P-luku | B195: =+T!C99 -> 0.5556202437 | C195: =+T!D99 -> 0.4869439785 | D195: =+T!E99 -> 0.4004871679 | E195: =+T!F99 -> 0.3038293826 | F195: =+T!G99 -> 0.2065754273
A198: =+T!B102 -> TULKINTARAPORTTI
B200: =+T!C104 -> Ennakoidut viisi vuotta:
B201: =+T!C105 -> 1 | C201: =+T!D105 -> 2 | D201: =+T!E105 -> 3 | E201: =+T!F105 -> 4 | F201: =+T!G105 -> 5
A202: =+T!B106 -> Kannattavuus
A203: =+T!B107 -> Käyttökate / Myyntituotot (%) | B203: =+T!C107 -> Positiivinen | C203: =+T!D107 -> Positiivinen | D203: =+T!E107 -> Positiivinen | E203: =+T!F107 -> Positiivinen | F203: =+T!G107 -> Positiivinen
A204: =+T!B108 -> Sijoitetun pääoman tuotto-% | C204: =+T!D108 -> Hyvä | D204: =+T!E108 -> Erinomainen | E204: =+T!F108 -> Erinomainen | F204: =+T!G108 -> Erinomainen
A205: =+T!B109 -> Oman pääoman tuotto-% | C205: =+T!D109 -> Erinomainen | D205: =+T!E109 -> Erinomainen | E205: =+T!F109 -> Erinomainen | F205: =+T!G109 -> Erinomainen
A207: =+T!B111 -> Maksuvalmius
A208: =+T!B112 -> Rahoitustulos / Myyntituotot | B208: =+T!C112 -> Positiivinen | C208: =+T!D112 -> Positiivinen | D208: =+T!E112 -> Positiivinen | E208: =+T!F112 -> Positiivinen | F208: =+T!G112 -> Positiivinen
A209: =+T!B113 -> Quick ratio | B209: =+T!C113 -> Erinomainen | C209: =+T!D113 -> Erinomainen | D209: =+T!E113 -> Erinomainen | E209: =+T!F113 -> Erinomainen | F209: =+T!G113 -> Erinomainen
A211: =+T!B115 -> Vakavaraisuus
A212: =+T!B116 -> Omavaraisuusaste | B212: =+T!C116 -> Heikko | C212: =+T!D116 -> Välttävä | D212: =+T!E116 -> Tyydyttävä | E212: =+T!F116 -> Hyvä | F212: =+T!G116 -> Erinomainen
A213: =+T!B117 -> Rahoitustulos / Velat (%) | B213: =+T!C117 -> Välttävä | C213: =+T!D117 -> Tyydyttävä | D213: =+T!E117 -> Hyvä | E213: =+T!F117 -> Hyvä | F213: =+T!G117 -> Hyvä
A215: =+T!B119 -> Rahoitusriski
A216: =+T!B120 -> Kolmen muuttujan P-luku | B216: =+T!C120 -> Suuri riski | C216: =+T!D120 -> Suuri riski | D216: =+T!E120 -> Kohtuullinen riski | E216: =+T!F120 -> Kohtuullinen riski | F216: =+T!G120 -> Suhteellisen pieni riski
A218: =+T!B123 -> LIITEKUVIOT
A290: Tämä raportti on suuntaa-antava laskelma siitä, miten ratsastuskoulusi voisi antamillasi lähtötiedoilla menestyä viiden ensimmäisen vuoden aikana. Tehdyt laskelmat perustuvat omiin arvioihisi esimerkiksi yrityksesi kasvusta ja velkojen korkokannoista. Laskelmissa ei ole huomioitu erikseen arvonlisäveroa. Vastuu laskelmien hyödyntämisestä on ohjelman käyttäjällä. Copyright Vaasan Yritysinformaatio Oy.

Sheet E (hidden)
A1: 1 | B1: =+A1+1 -> 2 | C1: =+B1+1 -> 3 | D1: 4 | E1: 5 | F1: 6 | G1: 7 | H1: 8
A2: Copyright Vaasan Yritysinformaatio Oy. Kaikki tekijänoikeudet pidätetään.
A3: PERUSTETTAVAN YRITYKSEN TILINPÄÄTÖSENNUSTE VIIDELLE VUODELLE
A5: LIIKEVAIHDON KASVUENNUSTE
B6: Lähtöoletus: | D6: Vuodet:
D7: 1 | E7: 2 | F7: 3 | G7: 4 | H7: 5
A8: Ensimmäisen vuoden liikevaihto | B8: =+K!F37 -> 215010 | D8: =+$B$8*(1+$B$9)^(D$7-1) -> 215010 | E8: =+$B$8*(1+$B$9)^(E$7-1) -> 225760.5 | F8: 237048.525 | G8: 248900.9513 | H8: 261345.9988
A9: Liikevaihdon arvioitu kasvuvauhti | B9: =+K!G23 -> 0.05
A10: Kiinteiden kulujen arvioitu kasvuvauhti | B10: =+K!G24 -> 0.03
A13: Verokanta | B13: =+K!G17 -> 0.2
A14: Lyhytaikaisen vieraan pääoman korko-% | B14: =+K!G18 -> 0.03
A15: Pitkäaikaisen vieraan pääoman korko-% | B15: =+K!G19 -> 0.02
A16: Osinko-% kertyneistä voitoista | B16: =+K!G21 -> 0.05
A17: Pitkäaikaisen velan pituus vuosina | B17: =+K!G20 -> 5
A18: Rahoitusomaisuus / Liikevaihto | B18: =+K!G22 -> 0.05 | C18: Minimitaso | D18: Toimivien yritysten keskiarvo
A19: Vaihto-omaisuus / Liikevaihto | B19: 0 | C19: Taso
A20: Myyntisaamisten kasvu-% | B20: 0
A21: Ostovelkojen kasvu-% | B21: 0
A23: KASSAVIRTAENNUSTE (Euro)
D25: =+D7 -> 1 | E25: =+D25+1 -> 2 | F25: =+E25+1 -> 3 | G25: 4 | H25: 5
A26: Liikevaihto | B26: %-osuus | D26: =+D8 -> 215010 | E26: =+E8 -> 225760.5 | F26: =+F8 -> 237048.525 | G26: =+G8 -> 248900.9513 | H26: =+H8 -> 261345.9988
A27: - Muuttuvat kulut
A28: Karkearehu | B28: =+K!G45/100 -> 0.08371703642 | D28: =+$B28*D$26 -> 18000 | E28: 18900 | F28: 19845 | G28: 20837.25 | H28: 21879.1125
A29: Väkirehu | B29: =+K!G46/100 -> 0.01674340728 | D29: 3600 | E29: 3780 | F29: 3969 | G29: 4167.45 | H29: 4375.8225
A30: Kivennäiset | B30: =+K!G47/100 -> 0.01674340728 | D30: 3600 | E30: 3780 | F30: 3969 | G30: 4167.45 | H30: 4375.8225
A31: Muut ruokintakustannukset | B31: =+K!G48/100 -> 0.01674340728 | D31: 3600 | E31: 3780 | F31: 3969 | G31: 4167.45 | H31: 4375.8225
A32: Kuivikekustannukset | B32: =+K!G49/100 -> 0.04185851821 | D32: 9000 | E32: 9450 | F32: 9922.5 | G32: 10418.625 | H32: 10939.55625
A33: Kengitykset | B33: =+K!G50/100 -> 0.02790567881 | D33: 6000 | E33: 6300 | F33: 6615 | G33: 6945.75 | H33: 7293.0375
A34: Madotukset | B34: =+K!G51/100 -> 0.002325473234 | D34: 500 | E34: 525 | F34: 551.25 | G34: 578.8125 | H34: 607.753125
A35: Rokotukset | B35: =+K!G52/100 -> 0.004650946468 | D35: 1000 | E35: 1050 | F35: 1102.5 | G35: 1157.625 | H35: 1215.50625
A36: Raspaukset | B36: =+K!G53/100 -> 0.004650946468 | D36: 1000 | E36: 1050 | F36: 1102.5 | G36: 1157.625 | H36: 1215.50625
A37: Muut eläinlääkärikulut | B37: =+K!G54/100 -> 0.009301892935 | D37: 2000 | E37: 2100 | F37: 2205 | G37: 2315.25 | H37: 2431.0125
A38: Varustekustannukset | B38: =+K!G55/100 -> 0.02325473234 | D38: 5000 | E38: 5250 | F38: 5512.5 | G38: 5788.125 | H38: 6077.53125
A39: Ratsastuksen opettajien palkat lisineen | B39: =+K!G56/100 -> 0.2116180643 | D39: 45500 | E39: 47775 | F39: 50163.75 | G39: 52671.9375 | H39: 55305.53438
A40: Täyshoitohevosten hoitajien palkat lisineen | B40: =+K!G57/100 -> 0.05581135761 | D40: 12000 | E40: 12600 | F40: 13230 | G40: 13891.5 | H40: 14586.075
A41: Muut muuttuvat kulut | B41: =+K!G58/100 -> 0.009301892935 | D41: 2000 | E41: 2100 | F41: 2205 | G41: 2315.25 | H41: 2431.0125
A42: = Myyntikate (menopohjainen) | B42: =+K!G59/100 -> 0.4753732385 | D42: =+D26-SUM(D28:D41) -> 102210 | E42: =+E26-SUM(E28:E41) -> 107320.5 | F42: 112686.525 | G42: 118320.8513 | H42: 124236.8938
A43: - Kiinteät kulut
A44: Vuokrakulut | B44: =+K!F63 -> 0 | D44: =+$B44*(1+$B$10)^(D$25-1) -> 0 | E44: 0 | F44: 0 | G44: 0 | H44: 0
A45: Sähkökulut | B45: =+K!F64 -> 2400 | D45: 2400 | E45: 2472 | F45: 2546.16 | G45: 2622.5448 | H45: 2701.221144
A46: Vesikulut | B46: =+K!F65 -> 1200 | D46: 1200 | E46: 1236 | F46: 1273.08 | G46: 1311.2724 | H46: 1350.610572
A47: Pohjien huolto | B47: =+K!F66 -> 3000 | D47: 3000 | E47: 3090 | F47: 3182.7 | G47: 3278.181 | H47: 3376.52643
A48: Lantalan tyhjennys | B48: =+K!F67 -> 1200 | D48: 1200 | E48: 1236 | F48: 1273.08 | G48: 1311.2724 | H48: 1350.610572
A49: Kiinteät palkkakustannukset lisineen | B49: =+K!F68 -> 24000 | D49: 24000 | E49: 24720 | F49: 25461.6 | G49: 26225.448 | H49: 27012.21144
A50: Muut kiinteät kulut | B50: =+K!F69 -> 1200 | D50: 1200 | E50: 1236 | F50: 1273.08 | G50: 1311.2724 | H50: 1350.610572
A51: = Käyttökate (menopohjainen) | D51: =+D42-SUM(D44:D50) -> 69210 | E51: =+E42-SUM(E44:E50) -> 73330.5 | F51: 77676.825 | G51: 82260.86025 | H51: 87095.10308
A52: Korkomenot | B52: automaatti | D52: =+$B$14*C$141+$B$15*C$143 -> 6000 | E52: =+$B$14*D$141+$B$15*D$143 -> 6000 | F52: =+$B$14*E$141+$B$15*E$143 -> 4920 | G52: =+$B$14*F$141+$B$15*F$143 -> 3840 | H52: =+$B$14*G$141+$B$15*G$143 -> 2760
A53: Verot | B53: automaatti | D53: =+D121 -> 6735.333333 | E53: =+E121 -> 7559.433333 | F53: =+F121 -> 8744.698333 | G53: =+G121 -> 9877.505383 | H53: =+H121 -> 13560.35395
A54: Osingot | B54: automaatti | D54: 0 | E54: =+D149 -> 1347.066667 | F54: =+E149 -> 2791.6 | G54: =+F149 -> 4400.959667 | H54: =+G149 -> 6156.41276
A55: = Rahoitustulos (menopohjainen) | D55: =+D51-SUM(D52:D54) -> 56474.66667 | E55: =+E51-SUM(E52:E54) -> 58424 | F55: 61220.52667 | G55: 64142.3952 | H55: 64618.33637
A56: - Investoinnit
A57: Hevosten hankinta | B57: =+K!F79 -> 30000 | C57: =+B57 -> 30000 | D57: =+B57 -> 30000 | E57: 0 | F57: 0 | G57: 0 | H57: 0
A58: Maa- ja vesialueet | B58: =+K!F80 -> 40000 | C58: =+B58 -> 40000 | D58: =+B58 -> 40000 | E58: 0 | F58: 0 | G58: 0 | H58: 0
A59: Rakennukset ja rakennelmat | B59: =+K!F81 -> 200000 | C59: 200000 | D59: 200000 | E59: 0 | F59: 0 | G59: 0 | H59: 0
A60: Koneet ja kalusto | B60: =+K!F82 -> 50000 | C60: 50000 | D60: 50000 | E60: 0 | F60: 0 | G60: 0 | H60: 0
A61: Aineeton käyttöomaisuus | B61: =+K!F83 -> 1000 | C61: 1000 | D61: 1000 | E61: 0 | F61: 0 | G61: 0 | H61: 0
A62: Muu käyttöomaisuus | B62: =+K!F84 -> 1000 | C62: 1000 | D62: 1000 | E62: 0 | F62: 0 | G62: 0 | H62: 0
A63: - Kassavirtamuunnos
A64: = Investointijäämä | D64: =+D55-SUM(D57:D63) -> -265525.3333 | E64: =+E55-SUM(E57:E63) -> 58424 | F64: =+F55-SUM(F57:F63) -> 61220.52667 | G64: =+G55-SUM(G57:G63) -> 64142.3952 | H64: =+H55-SUM(H57:H63) -> 64618.33637
A65: + Muun rahoitusomaisuuden vähennys | B65: automaatti | D65: =-$B$18*D$86+C128 -> -10750.5 | E65: =-$B$18*E$86+D128 -> 23186.64167 | F65: =-$B$18*F$86+E128 -> 27046.24042 | G65: =-$B$18*G$86+F128 -> 33674.14577 | H65: =-$B$18*H$86+G128 -> 43194.28859
A66: + Muun lyhytaikaisen vieraan pääoman lisäys | B66: =+K!F89 -> 20000 | D66: =+K!F89 -> 20000 | E66: 0 | F66: 0 | G66: 0 | H66: 0
A67: + Pitkäaikaisen vieraan pääoman lisäys | B67: =+K!F90 -> 270000 | D67: =+K!F90 -> 270000 | E67: =-IF(K!$G$24<E25,$D$67/K!$G$20) -> -54000 | F67: =-IF(K!$G$24<F25,$D$67/K!$G$20) -> -54000 | G67: =-IF(K!$G$24<G25,$D$67/K!$G$20) -> -54000 | H67: =-IF(K!$G$24<H25,$D$67/K!$G$20) -> -54000
A68: + Oman pääoman lisäys | B68: =+K!F91 -> 10000 | D68: =+K!F91 -> 10000 | E68: 0 | F68: 0 | G68: 0 | H68: 0
A69: - Rahoitusomaisuuden lisäys (tasoitus) | B69: automaatti | D69: =+IF(SUM(D64:D68)>0,-SUM(D64:D68),0) -> -23724.16667 | E69: =+IF(SUM(E64:E68)>0,-SUM(E64:E68),0) -> -27610.64167 | F69: -34266.76708 | G69: -43816.54097 | H69: -53812.62497
A70: = Netto rahoituksen jälkeen (0) | D70: =+SUM(D64:D69) -> 0 | E70: =+SUM(E64:E69) -> 0 | F70: =+SUM(F64:F69) -> 0 | G70: =+SUM(G64:G69) -> 0 | H70: =+SUM(H64:H69) -> 0
D71: =+IF(D70=0," ","Huom! Ei 0") ->  | E71: =+IF(E70=0," ","Huom! Ei 0") -> 
D72: Lyhytaikaisen velan
D73: lisäykseen
A75: Poistot: | B75: Pitoaika | C75: Poisto-osuus
A76: =+A57 -> Hevosten hankinta | B76: =+K!F10 -> 10 | C76: =+K!G10 -> 0.1
A77: Maa- ja vesialueet | B77: 0 | C77: 0
A78: Rakennukset ja rakennelmat | B78: =+K!F11 -> 15 | C78: =+K!G11 -> 0.06666666667
A79: Koneet ja kalusto | B79: =+K!F12 -> 4 | C79: =+K!G12 -> 0.25
A80: Aineeton käyttöomaisuus | B80: =+K!F13 -> 5 | C80: =+K!G13 -> 0.2
A81: Muu käyttöomaisuus | B81: =+K!F14 -> 2 | C81: =+K!G14 -> 0.5
A83: TULOSLASKELMAENNUSTE (Euro)
D84: Ennusteet:
D85: =+D25 -> 1 | E85: 2 | F85: 3 | G85: 4 | H85: 5
A86: Liikevaihto | D86: 215010 | E86: 225760.5 | F86: 237048.525 | G86: 248900.9513 | H86: 261345.9988
A87: - Muuttuvat kulut
A88: Karkearehu | D88: =+D28 -> 18000 | E88: 18900 | F88: 19845 | G88: 20837.25 | H88: 21879.1125
A89: Väkirehu | D89: 3600 | E89: 3780 | F89: 3969 | G89: 4167.45 | H89: 4375.8225
A90: Kivennäiset | D90: 3600 | E90: 3780 | F90: 3969 | G90: 4167.45 | H90: 4375.8225
A91: Muut ruokintakustannukset | D91: 3600 | E91: 3780 | F91: 3969 | G91: 4167.45 | H91: 4375.8225
A92: Kuivikekustannukset | D92: 9000 | E92: 9450 | F92: 9922.5 | G92: 10418.625 | H92: 10939.55625
A93: Kengitykset | D93: 6000 | E93: 6300 | F93: 6615 | G93: 6945.75 | H93: 7293.0375
A94: Madotukset | D94: 500 | E94: 525 | F94: 551.25 | G94: 578.8125 | H94: 607.753125
A95: Rokotukset | D95: 1000 | E95: 1050 | F95: 1102.5 | G95: 1157.625 | H95: 1215.50625
A96: Raspaukset | D96: 1000 | E96: 1050 | F96: 1102.5 | G96: 1157.625 | H96: 1215.50625
A97: Muut eläinlääkärikulut | D97: 2000 | E97: 2100 | F97: 2205 | G97: 2315.25 | H97: 2431.0125
A98: Varustekustannukset | D98: 5000 | E98: 5250 | F98: 5512.5 | G98: 5788.125 | H98: 6077.53125
A99: Ratsastuksen opettajien palkat lisineen | D99: 45500 | E99: 47775 | F99: 50163.75 | G99: 52671.9375 | H99: 55305.53438
A100: Täyshoitohevosten hoitajien palkat lisineen | D100: =+D40 -> 12000 | E100: 12600 | F100: 13230 | G100: 13891.5 | H100: 14586.075
A101: Muut muuttuvat kulut | D101: =+D41 -> 2000 | E101: 2100 | F101: 2205 | G101: 2315.25 | H101: 2431.0125
A102: = Myyntikate | D102: =+D86-SUM(D88:D101) -> 102210 | E102: =+E86-SUM(E88:E101) -> 107320.5 | F102: =+F86-SUM(F88:F101) -> 112686.525 | G102: =+G86-SUM(G88:G101) -> 118320.8513 | H102: =+H86-SUM(H88:H101) -> 124236.8938
A103: - Kiinteät kulut
A104: Vuokrakulut | D104: =+D44 -> 0 | E104: 0 | F104: 0 | G104: 0 | H104: 0
A105: Sähkökulut | D105: 2400 | E105: 2472 | F105: 2546.16 | G105: 2622.5448 | H105: 2701.221144
A106: Vesikulut | D106: 1200 | E106: 1236 | F106: 1273.08 | G106: 1311.2724 | H106: 1350.610572
A107: Pohjien huolto | D107: 3000 | E107: 3090 | F107: 3182.7 | G107: 3278.181 | H107: 3376.52643
A108: Lantalan tyhjennys | D108: 1200 | E108: 1236 | F108: 1273.08 | G108: 1311.2724 | H108: 1350.610572
A109: Kiinteät palkkakustannukset lisineen | D109: 24000 | E109: 24720 | F109: 25461.6 | G109: 26225.448 | H109: 27012.21144
A110: Muut kiinteät kulut | D110: =+D50 -> 1200 | E110: 1236 | F110: 1273.08 | G110: 1311.2724 | H110: 1350.610572
A111: = Käyttökate | D111: =+D102-SUM(D104:D110) -> 69210 | E111: =+E102-SUM(E104:E110) -> 73330.5 | F111: 77676.825 | G111: 82260.86025 | H111: 87095.10308
A112: - Poistot
A113: =+A57 -> Hevosten hankinta | C113: =+C57 -> 30000 | D113: =+IF(D$85>$B76,0,$C76*$C113) -> 3000 | E113: 3000 | F113: 3000 | G113: 3000 | H113: 3000
A114: Maa- ja vesialueet | C114: 40000 | D114: 0 | E114: 0 | F114: 0 | G114: 0 | H114: 0
A115: Rakennukset ja rakennelmat | C115: 200000 | D115: 13333.33333 | E115: 13333.33333 | F115: 13333.33333 | G115: 13333.33333 | H115: 13333.33333
A116: Koneet ja kalusto | C116: 50000 | D116: 12500 | E116: 12500 | F116: 12500 | G116: 12500 | H116: 0
A117: Aineeton käyttöomaisuus | C117: 1000 | D117: 200 | E117: 200 | F117: 200 | G117: 200 | H117: 200
A118: Muu käyttöomaisuus | C118: 1000 | D118: 500 | E118: 500 | F118: 0 | G118: 0 | H118: 0
A119: = Liiketulos | D119: =+D111-SUM(D113:D118) -> 39676.66667 | E119: =+E111-SUM(E113:E118) -> 43797.16667 | F119: 48643.49167 | G119: 53227.52692 | H119: 70561.76975
A120: - Korkokulut | D120: =+D52 -> 6000 | E120: =+E52 -> 6000 | F120: =+F52 -> 4920 | G120: =+G52 -> 3840 | H120: =+H52 -> 2760
A121: - Verot | D121: =+IF((D119-D120)>0,$B$13*(D119-D120),0) -> 6735.333333 | E121: =+IF((E119-E120)>0,$B$13*(E119-E120),0) -> 7559.433333 | F121: 8744.698333 | G121: 9877.505383 | H121: 13560.35395
A122: Tilikauden tulos | D122: =+D119-SUM(D120:D121) -> 26941.33333 | E122: =+E119-SUM(E120:E121) -> 30237.73333 | F122: 34978.79333 | G122: 39510.02153 | H122: 54241.4158
A124: TASE-ENNUSTE (Euro)
A126: Taseen omaisuus | D126: Ennusteet:
A127: Lyhytaikainen: | D127: =+D85 -> 1 | E127: =+E85 -> 2 | F127: =+F85 -> 3 | G127: =+G85 -> 4 | H127: =+H85 -> 5
A128: Rahoitusomaisuus | D128: =+$B$18*D86-D69 -> 34474.66667 | E128: =+$B$18*E86-E69 -> 38898.66667 | F128: =+$B$18*F86-F69 -> 46119.19333 | G128: =+$B$18*G86-G69 -> 56261.58853 | H128: =+$B$18*H86-H69 -> 66879.92491
A129: Pitkäaikainen:
A130: =+A57 -> Hevosten hankinta | C130: =+C57 -> 30000 | D130: =+C130-D113 -> 27000 | E130: =+D130-E113+E57 -> 24000 | F130: 21000 | G130: 18000 | H130: 15000
A131: Maa- ja vesialueet | C131: 40000 | D131: 40000 | E131: 40000 | F131: 40000 | G131: 40000 | H131: 40000
A132: Rakennukset ja rakennelmat | C132: 200000 | D132: 186666.6667 | E132: 173333.3333 | F132: 160000 | G132: 146666.6667 | H132: 133333.3333
A133: Koneet ja kalusto | C133: 50000 | D133: 37500 | E133: 25000 | F133: 12500 | G133: 0 | H133: 0
A134: Aineeton käyttöomaisuus | C134: 1000 | D134: 800 | E134: 600 | F134: 400 | G134: 200 | H134: 0
A135: Muu käyttöomaisuus | C135: 1000 | D135: 500 | E135: 0 | F135: 0 | G135: 0 | H135: 0
A136: Yhteensä | D136: =+D128+SUM(D130:D135) -> 326941.3333 | E136: =+E128+SUM(E130:E135) -> 301832 | F136: =+F128+SUM(F130:F135) -> 280019.1933 | G136: =+G128+SUM(G130:G135) -> 261128.2552 | H136: =+H128+SUM(H130:H135) -> 255213.2582
A138: Taseen pääoma
A139: Lyhytaikainen:
A140: Lyhytaikaiset velat (maks. voitto-osuus) | D140: =+D149 -> 1347.066667 | E140: =+E149 -> 2791.6 | F140: 4400.959667 | G140: 6156.41276 | H140: 8560.662912
A141: Muu lyhytaikainen vieras pääoma | C141: =+B66 -> 20000 | D141: =+C141-D70 -> 20000 | E141: =+D141-E70 -> 20000 | F141: =+E141-F70 -> 20000 | G141: =+F141-G70 -> 20000 | H141: =+G141-H70 -> 20000
A142: Pitkäaikainen:
A143: Pitkäaikainen vieras pääoma | C143: =+B67 -> 270000 | D143: =+C143 -> 270000 | E143: =+D143+E67 -> 216000 | F143: 162000 | G143: 108000 | H143: 54000
A144: Sijoitettu oma pääoma | C144: =+B68 -> 10000 | D144: =+C144 -> 10000 | E144: 10000 | F144: 10000 | G144: 10000 | H144: 10000
A145: Kertyneet voittovarat ja muu oma pääoma | C145: =+D122 -> 26941.33333 | D145: =+C145-D149 -> 25594.26667 | E145: =+D145+E122-E149 -> 53040.4 | F145: =+E145+F122-F149 -> 83618.23367 | G145: =+F145+G122-G149 -> 116971.8424 | H145: =+G145+H122-H149 -> 162652.5953
A146: Yhteensä | D146: =+SUM(D140:D145) -> 326941.3333 | E146: 301832 | F146: 280019.1933 | G146: 261128.2552 | H146: 255213.2582
A148: Lisätietoja: | D148: Laskettu:
A149: Osingot kertyneistä voitoista | B149: =+B16 -> 0.05 | D149: =+IF(C145-$B149*C145>0,$B149*C145,IF(C145>0,C145,0)) -> 1347.066667 | E149: =+IF(D145-$B149*D145+E122>0,$B149*(D145+E122),IF(D145+E122>0,D145+E122,0)) -> 2791.6 | F149: =+IF(E145-$B149*E145+F122>0,$B149*(E145+F122),IF(E145+F122>0,E145+F122,0)) -> 4400.959667 | G149: =+IF(F145-$B149*F145+G122>0,$B149*(F145+G122),IF(F145+G122>0,F145+G122,0)) -> 6156.41276 | H149: =+IF(G145-$B149*G145+H122>0,$B149*(G145+H122),IF(G145+H122>0,G145+H122,0)) -> 8560.662912
C151: Tarkistus | D151: =0.05*(D145+D140) -> 1347.066667 | E151: =0.05*(E145+E140) -> 2791.6 | F151: 4400.959667 | G151: 6156.41276 | H151: 8560.662912
A154: TILINPÄÄTÖKSEN TUNNUSLUVUT
D155: =+D25 -> 1 | E155: =+E25 -> 2 | F155: =+F25 -> 3 | G155: =+G25 -> 4 | H155: =+H25 -> 5
A156: Koko
A157: 1. Liikevaihto (Euro) | D157: =+D86 -> 215010 | E157: =+E86 -> 225760.5 | F157: =+F86 -> 237048.525 | G157: =+G86 -> 248900.9513 | H157: =+H86 -> 261345.9988
A158: 2. Taseen loppusumma (Euro) | D158: =+D136 -> 326941.3333 | E158: =+E136 -> 301832 | F158: =+F136 -> 280019.1933 | G158: =+G136 -> 261128.2552 | H158: =+H136 -> 255213.2582
A159: 3. Tilikauden tulos (Euro) | D159: =+D122 -> 26941.33333 | E159: =+E122 -> 30237.73333 | F159: =+F122 -> 34978.79333 | G159: =+G122 -> 39510.02153 | H159: =+H122 -> 54241.4158
A160: 4. Voitto-osuus omistajalle (Euro) | D160: =+D149 -> 1347.066667 | E160: =+E149 -> 2791.6 | F160: 4400.959667 | G160: 6156.41276 | H160: 8560.662912
A162: Kasvu
A163: 1. Liikevaihdon kasvu-% | E163: =100*E86/D86-100 -> 5 | F163: =100*F86/E86-100 -> 5 | G163: =100*G86/F86-100 -> 5 | H163: =100*H86/G86-100 -> 5
A164: 2. Taseen loppusumman kasvu-% | E164: =100*E136/D136-100 -> -7.680073081 | F164: =100*F136/E136-100 -> -7.226803873 | G164: =100*G136/F136-100 -> -6.746301176 | H164: =100*H136/G136-100 -> -2.265169258
A165: 3. Tilikauden tuloksen kasvu-% | E165: =100*(E122)/(D122)-100 -> 12.23547461 | F165: =100*(F122)/(E122)-100 -> 15.67928372 | G165: =100*(G122)/(F122)-100 -> 12.95421531 | H165: =100*(H122)/(G122)-100 -> 37.28520941
A167: Kannattavuus
A168: 1. Käyttökate / Liikevaihto (%) | D168: =100*D111/D86 -> 32.1892005 | E168: =100*E111/E86 -> 32.48154571 | F168: =100*F111/F86 -> 32.76832244 | G168: =100*G111/G86 -> 33.04963675 | H168: =100*H111/H86 -> 33.32559269
A169: 2. Liiketulos / Liikevaihto (%) | D169: =100*D119/D86 -> 18.45340527 | E169: =100*E119/E86 -> 19.39983596 | F169: =100*F119/F86 -> 20.52047853 | G169: =100*G119/G86 -> 21.3850235 | H169: =100*H119/H86 -> 26.99936868
A170: 3. Tilikauden tulos / Liikevaihto (%) | D170: =100*D122/D86 -> 12.53026991 | E170: =100*E122/E86 -> 13.39372181 | F170: =100*F122/F86 -> 14.75596329 | G170: =100*G122/G86 -> 15.8737929 | H170: =100*H122/H86 -> 20.75463793
A171: 4. Sijoitetun pääoman tuotto-% | E171: =100*(E122+E121+E120)/D136 -> 13.39603232 | F171: =100*(F122+F121+F120)/E136 -> 16.11608168 | G171: =100*(G122+G121+G120)/F136 -> 19.00852805 | H171: =100*(H122+H121+H120)/G136 -> 27.02188229
A172: 5. Oman pääoman tuotto-% | E172: =+IF(D144+D145>0,100*(E122)/(D144+D145),"") -> 84.95113445 | F172: =+IF(E144+E145>0,100*(F122)/(E144+E145),"") -> 55.48631248 | G172: 42.20334008 | H172: 42.71924764
A174: Maksuvalmius
A175: 1. Rahoitustulos / Liikevaihto | D175: =100*(D122+SUM(D113:D118))/D86 -> 26.26606514 | E175: =100*(E122+SUM(E113:E118))/E86 -> 26.47543156 | F175: =100*(F122+SUM(F113:F118))/F86 -> 27.0038072 | G175: =100*(G122+SUM(G113:G118))/G86 -> 27.53840615 | H175: =100*(H122+SUM(H113:H118))/H86 -> 27.08086194
A176: 2. Quick ratio | D176: =+(D128)/(D140+D141) -> 1.614960369 | E176: =+(E128)/(E140+E141) -> 1.706710659 | F176: 1.890056537 | G176: 2.1509673 | H176: 2.341679712
A178: Vakavaraisuus
A179: 1. Omavaraisuusaste | D179: =100*(D144+D145)/D146 -> 10.88705007 | E179: =100*(E144+E145)/E146 -> 20.8859233 | F179: 33.43279171 | G179: 48.62432154 | H179: 67.6503237
A180: 2. Rahoitustulos / Velat (%) | D180: =100*(D122+SUM(D113:D118))/(+D140+D141+D143) -> 19.38398327 | E180: =100*(E122+SUM(E113:E118))/(+E140+E141+E143) -> 25.03064039 | F180: 34.34109287 | G180: 51.09211961 | H180: 85.72454076
A182: Rahoitusriski
A183: 1. Kolmen muuttujan P-luku | B183: Kriittinen arvo P* = 0,50 | D183: =1/(1+EXP(-(0.843-0.027*D179-0.039*D176-0.01*D175))) -> 0.5556202437 | E183: =1/(1+EXP(-(0.843-0.027*E179-0.039*E176-0.01*E175))) -> 0.4869439785 | F183: =1/(1+EXP(-(0.843-0.027*F179-0.039*F176-0.01*F175))) -> 0.4004871679 | G183: =1/(1+EXP(-(0.843-0.027*G179-0.039*G176-0.01*G175))) -> 0.3038293826 | H183: =1/(1+EXP(-(0.843-0.027*H179-0.039*H176-0.01*H175))) -> 0.2065754273
B184: Tulkintalause | D184: =+IF(D183>0.65,"Erittäin suuri riski",IF(D183>0.45,"Suuri riski",IF(D183>0.25,"Kohtuullinen riski",IF(D183>0.1,"Suhteellisen pieni riski","Pieni riski")))) -> Suuri riski | E184: =+IF(E183>0.65,"Erittäin suuri riski",IF(E183>0.45,"Suuri riski",IF(E183>0.25,"Kohtuullinen riski",IF(E183>0.1,"Suhteellisen pieni riski","Pieni riski")))) -> Suuri riski | F184: Kohtuullinen riski | G184: Kohtuullinen riski | H184: Suhteellisen pieni riski

Sheet T (hidden)
B1: Copyright Vaasan Yritysinformaatio Oy. Kaikki tekijänoikeudet pidätetään.
B3: ENNAKOITU TULOSLASKELMA
C4: Ennakoidut viisi vuotta:
C5: 1 | D5: 2 | E5: 3 | F5: 4 | G5: 5
B6: =+E!A86 -> Liikevaihto | C6: =+E!D86 -> 215010 | D6: =+E!E86 -> 225760.5 | E6: =+E!F86 -> 237048.525 | F6: =+E!G86 -> 248900.9513 | G6: =+E!H86 -> 261345.9988
B7: =+E!A87 -> - Muuttuvat kulut
B8: =+E!A88 -> Karkearehu | C8: =+E!D88 -> 18000 | D8: =+E!E88 -> 18900 | E8: =+E!F88 -> 19845 | F8: =+E!G88 -> 20837.25 | G8: =+E!H88 -> 21879.1125
B9: =+E!A89 -> Väkirehu | C9: =+E!D89 -> 3600 | D9: =+E!E89 -> 3780 | E9: =+E!F89 -> 3969 | F9: =+E!G89 -> 4167.45 | G9: =+E!H89 -> 4375.8225
B10: =+E!A90 -> Kivennäiset | C10: =+E!D90 -> 3600 | D10: =+E!E90 -> 3780 | E10: =+E!F90 -> 3969 | F10: =+E!G90 -> 4167.45 | G10: =+E!H90 -> 4375.8225
B11: =+E!A91 -> Muut ruokintakustannukset | C11: =+E!D91 -> 3600 | D11: =+E!E91 -> 3780 | E11: =+E!F91 -> 3969 | F11: =+E!G91 -> 4167.45 | G11: =+E!H91 -> 4375.8225
B12: =+E!A92 -> Kuivikekustannukset | C12: =+E!D92 -> 9000 | D12: =+E!E92 -> 9450 | E12: =+E!F92 -> 9922.5 | F12: =+E!G92 -> 10418.625 | G12: =+E!H92 -> 10939.55625
B13: =+E!A93 -> Kengitykset | C13: =+E!D93 -> 6000 | D13: =+E!E93 -> 6300 | E13: =+E!F93 -> 6615 | F13: =+E!G93 -> 6945.75 | G13: =+E!H93 -> 7293.0375
B14: =+E!A94 -> Madotukset | C14: =+E!D94 -> 500 | D14: =+E!E94 -> 525 | E14: =+E!F94 -> 551.25 | F14: =+E!G94 -> 578.8125 | G14: =+E!H94 -> 607.753125
B15: =+E!A95 -> Rokotukset | C15: =+E!D95 -> 1000 | D15: =+E!E95 -> 1050 | E15: =+E!F95 -> 1102.5 | F15: =+E!G95 -> 1157.625 | G15: =+E!H95 -> 1215.50625
B16: =+E!A96 -> Raspaukset | C16: =+E!D96 -> 1000 | D16: =+E!E96 -> 1050 | E16: =+E!F96 -> 1102.5 | F16: =+E!G96 -> 1157.625 | G16: =+E!H96 -> 1215.50625
B17: =+E!A97 -> Muut eläinlääkärikulut | C17: =+E!D97 -> 2000 | D17: =+E!E97 -> 2100 | E17: =+E!F97 -> 2205 | F17: =+E!G97 -> 2315.25 | G17: =+E!H97 -> 2431.0125
B18: =+E!A98 -> Varustekustannukset | C18: =+E!D98 -> 5000 | D18: =+E!E98 -> 5250 | E18: =+E!F98 -> 5512.5 | F18: =+E!G98 -> 5788.125 | G18: =+E!H98 -> 6077.53125
B19: =+E!A99 -> Ratsastuksen opettajien palkat lisineen | C19: =+E!D99 -> 45500 | D19: =+E!E99 -> 47775 | E19: =+E!F99 -> 50163.75 | F19: =+E!G99 -> 52671.9375 | G19: =+E!H99 -> 55305.53438
B20: =+E!A100 -> Täyshoitohevosten hoitajien palkat lisineen | C20: =+E!D100 -> 12000 | D20: =+E!E100 -> 12600 | E20: =+E!F100 -> 13230 | F20: =+E!G100 -> 13891.5 | G20: =+E!H100 -> 14586.075
B21: =+E!A101 -> Muut muuttuvat kulut | C21: =+E!D101 -> 2000 | D21: =+E!E101 -> 2100 | E21: =+E!F101 -> 2205 | F21: =+E!G101 -> 2315.25 | G21: =+E!H101 -> 2431.0125
B22: =+E!A102 -> = Myyntikate | C22: =+E!D102 -> 102210 | D22: =+E!E102 -> 107320.5 | E22: =+E!F102 -> 112686.525 | F22: =+E!G102 -> 118320.8513 | G22: =+E!H102 -> 124236.8938
B23: =+E!A103 -> - Kiinteät kulut
B24: =+E!A104 -> Vuokrakulut | C24: =+E!D104 -> 0 | D24: =+E!E104 -> 0 | E24: =+E!F104 -> 0 | F24: =+E!G104 -> 0 | G24: =+E!H104 -> 0
B25: =+E!A105 -> Sähkökulut | C25: =+E!D105 -> 2400 | D25: =+E!E105 -> 2472 | E25: =+E!F105 -> 2546.16 | F25: =+E!G105 -> 2622.5448 | G25: =+E!H105 -> 2701.221144
B26: =+E!A106 -> Vesikulut | C26: =+E!D106 -> 1200 | D26: =+E!E106 -> 1236 | E26: =+E!F106 -> 1273.08 | F26: =+E!G106 -> 1311.2724 | G26: =+E!H106 -> 1350.610572
B27: =+E!A107 -> Pohjien huolto | C27: =+E!D107 -> 3000 | D27: =+E!E107 -> 3090 | E27: =+E!F107 -> 3182.7 | F27: =+E!G107 -> 3278.181 | G27: =+E!H107 -> 3376.52643
B28: =+E!A108 -> Lantalan tyhjennys | C28: =+E!D108 -> 1200 | D28: =+E!E108 -> 1236 | E28: =+E!F108 -> 1273.08 | F28: =+E!G108 -> 1311.2724 | G28: =+E!H108 -> 1350.610572
B29: =+E!A109 -> Kiinteät palkkakustannukset lisineen | C29: =+E!D109 -> 24000 | D29: =+E!E109 -> 24720 | E29: =+E!F109 -> 25461.6 | F29: =+E!G109 -> 26225.448 | G29: =+E!H109 -> 27012.21144
B30: Muut kiinteät kulut | C30: =+E!D110 -> 1200 | D30: =+E!E110 -> 1236 | E30: =+E!F110 -> 1273.08 | F30: =+E!G110 -> 1311.2724 | G30: =+E!H110 -> 1350.610572
B31: =+E!A111 -> = Käyttökate | C31: =+E!D111 -> 69210 | D31: =+E!E111 -> 73330.5 | E31: =+E!F111 -> 77676.825 | F31: =+E!G111 -> 82260.86025 | G31: =+E!H111 -> 87095.10308
B32: =+E!A112 -> - Poistot
B33: =+E!A113 -> Hevosten hankinta | C33: =+E!D113 -> 3000 | D33: =+E!E113 -> 3000 | E33: =+E!F113 -> 3000 | F33: =+E!G113 -> 3000 | G33: =+E!H113 -> 3000
B34: =+E!A114 -> Maa- ja vesialueet | C34: =+E!D114 -> 0 | D34: =+E!E114 -> 0 | E34: =+E!F114 -> 0 | F34: =+E!G114 -> 0 | G34: =+E!H114 -> 0
B35: =+E!A115 -> Rakennukset ja rakennelmat | C35: =+E!D115 -> 13333.33333 | D35: =+E!E115 -> 13333.33333 | E35: =+E!F115 -> 13333.33333 | F35: =+E!G115 -> 13333.33333 | G35: =+E!H115 -> 13333.33333
B36: =+E!A116 -> Koneet ja kalusto | C36: =+E!D116 -> 12500 | D36: =+E!E116 -> 12500 | E36: =+E!F116 -> 12500 | F36: =+E!G116 -> 12500 | G36: =+E!H116 -> 0
B37: =+E!A117 -> Aineeton käyttöomaisuus | C37: =+E!D117 -> 200 | D37: =+E!E117 -> 200 | E37: =+E!F117 -> 200 | F37: =+E!G117 -> 200 | G37: =+E!H117 -> 200
B38: =+E!A118 -> Muu käyttöomaisuus | C38: =+E!D118 -> 500 | D38: =+E!E118 -> 500 | E38: =+E!F118 -> 0 | F38: =+E!G118 -> 0 | G38: =+E!H118 -> 0
B39: =+E!A119 -> = Liiketulos | C39: =+E!D119 -> 39676.66667 | D39: =+E!E119 -> 43797.16667 | E39: =+E!F119 -> 48643.49167 | F39: =+E!G119 -> 53227.52692 | G39: =+E!H119 -> 70561.76975
B40: =+E!A120 -> - Korkokulut | C40: =+E!D120 -> 6000 | D40: =+E!E120 -> 6000 | E40: =+E!F120 -> 4920 | F40: =+E!G120 -> 3840 | G40: =+E!H120 -> 2760
B41: =+E!A121 -> - Verot | C41: =+E!D121 -> 6735.333333 | D41: =+E!E121 -> 7559.433333 | E41: =+E!F121 -> 8744.698333 | F41: =+E!G121 -> 9877.505383 | G41: =+E!H121 -> 13560.35395
B42: =+E!A122 -> Tilikauden tulos | C42: =+E!D122 -> 26941.33333 | D42: =+E!E122 -> 30237.73333 | E42: =+E!F122 -> 34978.79333 | F42: =+E!G122 -> 39510.02153 | G42: =+E!H122 -> 54241.4158
B44: ENNAKOITU TASE
C45: =+C4 -> Ennakoidut viisi vuotta:
C46: 1 | D46: 2 | E46: 3 | F46: 4 | G46: 5
B47: =+E!A126 -> Taseen omaisuus
B48: =+E!A127 -> Lyhytaikainen:
B49: =+E!A128 -> Rahoitusomaisuus | C49: =+E!D128 -> 34474.66667 | D49: =+E!E128 -> 38898.66667 | E49: =+E!F128 -> 46119.19333 | F49: =+E!G128 -> 56261.58853 | G49: =+E!H128 -> 66879.92491
B50: =+E!A129 -> Pitkäaikainen:
B51: =+E!A130 -> Hevosten hankinta | C51: =+E!D130 -> 27000 | D51: =+E!E130 -> 24000 | E51: =+E!F130 -> 21000 | F51: =+E!G130 -> 18000 | G51: =+E!H130 -> 15000
B52: =+E!A131 -> Maa- ja vesialueet | C52: =+E!D131 -> 40000 | D52: =+E!E131 -> 40000 | E52: =+E!F131 -> 40000 | F52: =+E!G131 -> 40000 | G52: =+E!H131 -> 40000
B53: =+E!A132 -> Rakennukset ja rakennelmat | C53: =+E!D132 -> 186666.6667 | D53: =+E!E132 -> 173333.3333 | E53: =+E!F132 -> 160000 | F53: =+E!G132 -> 146666.6667 | G53: =+E!H132 -> 133333.3333
B54: =+E!A133 -> Koneet ja kalusto | C54: =+E!D133 -> 37500 | D54: =+E!E133 -> 25000 | E54: =+E!F133 -> 12500 | F54: =+E!G133 -> 0 | G54: =+E!H133 -> 0
B55: =+E!A134 -> Aineeton käyttöomaisuus | C55: =+E!D134 -> 800 | D55: =+E!E134 -> 600 | E55: =+E!F134 -> 400 | F55: =+E!G134 -> 200 | G55: =+E!H134 -> 0
B56: =+E!A135 -> Muu käyttöomaisuus | C56: =+E!D135 -> 500 | D56: =+E!E135 -> 0 | E56: =+E!F135 -> 0 | F56: =+E!G135 -> 0 | G56: =+E!H135 -> 0
B57: =+E!A136 -> Yhteensä | C57: =+E!D136 -> 326941.3333 | D57: =+E!E136 -> 301832 | E57: =+E!F136 -> 280019.1933 | F57: =+E!G136 -> 261128.2552 | G57: =+E!H136 -> 255213.2582
B59: =+E!A138 -> Taseen pääoma
B60: =+E!A139 -> Lyhytaikainen:
B61: =+E!A140 -> Lyhytaikaiset velat (maks. voitto-osuus) | C61: =+E!D140 -> 1347.066667 | D61: =+E!E140 -> 2791.6 | E61: =+E!F140 -> 4400.959667 | F61: =+E!G140 -> 6156.41276 | G61: =+E!H140 -> 8560.662912
B62: =+E!A141 -> Muu lyhytaikainen vieras pääoma | C62: =+E!D141 -> 20000 | D62: =+E!E141 -> 20000 | E62: =+E!F141 -> 20000 | F62: =+E!G141 -> 20000 | G62: =+E!H141 -> 20000
B63: =+E!A142 -> Pitkäaikainen:
B64: =+E!A143 -> Pitkäaikainen vieras pääoma | C64: =+E!D143 -> 270000 | D64: =+E!E143 -> 216000 | E64: =+E!F143 -> 162000 | F64: =+E!G143 -> 108000 | G64: =+E!H143 -> 54000
B65: =+E!A144 -> Sijoitettu oma pääoma | C65: =+E!D144 -> 10000 | D65: =+E!E144 -> 10000 | E65: =+E!F144 -> 10000 | F65: =+E!G144 -> 10000 | G65: =+E!H144 -> 10000
B66: =+E!A145 -> Kertyneet voittovarat ja muu oma pääoma | C66: =+E!D145 -> 25594.26667 | D66: =+E!E145 -> 53040.4 | E66: =+E!F145 -> 83618.23367 | F66: =+E!G145 -> 116971.8424 | G66: =+E!H145 -> 162652.5953
B67: =+E!A146 -> Yhteensä | C67: =+E!D146 -> 326941.3333 | D67: =+E!E146 -> 301832 | E67: =+E!F146 -> 280019.1933 | F67: =+E!G146 -> 261128.2552 | G67: =+E!H146 -> 255213.2582
B69: ENNAKOIDUT TUNNUSLUVUT
C70: =+C4 -> Ennakoidut viisi vuotta:
C71: =+E!D155 -> 1 | D71: =+E!E155 -> 2 | E71: =+E!F155 -> 3 | F71: =+E!G155 -> 4 | G71: =+E!H155 -> 5
B72: Koko
B73: =+E!A157 -> 1. Liikevaihto (Euro) | C73: =+E!D157 -> 215010 | D73: =+E!E157 -> 225760.5 | E73: =+E!F157 -> 237048.525 | F73: =+E!G157 -> 248900.9513 | G73: =+E!H157 -> 261345.9988
B74: =+E!A158 -> 2. Taseen loppusumma (Euro) | C74: =+E!D158 -> 326941.3333 | D74: =+E!E158 -> 301832 | E74: =+E!F158 -> 280019.1933 | F74: =+E!G158 -> 261128.2552 | G74: =+E!H158 -> 255213.2582
B75: =+E!A159 -> 3. Tilikauden tulos (Euro) | C75: =+E!D159 -> 26941.33333 | D75: =+E!E159 -> 30237.73333 | E75: =+E!F159 -> 34978.79333 | F75: =+E!G159 -> 39510.02153 | G75: =+E!H159 -> 54241.4158
B76: =+E!A160 -> 4. Voitto-osuus omistajalle (Euro) | C76: =+E!D160 -> 1347.066667 | D76: =+E!E160 -> 2791.6 | E76: =+E!F160 -> 4400.959667 | F76: =+E!G160 -> 6156.41276 | G76: =+E!H160 -> 8560.662912
B78: =+E!A162 -> Kasvu
B79: =+E!A163 -> 1. Liikevaihdon kasvu-% | D79: =+E!E163 -> 5 | E79: =+E!F163 -> 5 | F79: =+E!G163 -> 5 | G79: =+E!H163 -> 5
B80: =+E!A164 -> 2. Taseen loppusumman kasvu-% | D80: =+E!E164 -> -7.680073081 | E80: =+E!F164 -> -7.226803873 | F80: =+E!G164 -> -6.746301176 | G80: =+E!H164 -> -2.265169258
B81: =+E!A165 -> 3. Tilikauden tuloksen kasvu-% | D81: =+E!E165 -> 12.23547461 | E81: =+E!F165 -> 15.67928372 | F81: =+E!G165 -> 12.95421531 | G81: =+E!H165 -> 37.28520941
B83: =+E!A167 -> Kannattavuus
B84: =+E!A168 -> 1. Käyttökate / Liikevaihto (%) | C84: =+E!D168 -> 32.1892005 | D84: =+E!E168 -> 32.48154571 | E84: =+E!F168 -> 32.76832244 | F84: =+E!G168 -> 33.04963675 | G84: =+E!H168 -> 33.32559269
B85: =+E!A169 -> 2. Liiketulos / Liikevaihto (%) | C85: =+E!D169 -> 18.45340527 | D85: =+E!E169 -> 19.39983596 | E85: =+E!F169 -> 20.52047853 | F85: =+E!G169 -> 21.3850235 | G85: =+E!H169 -> 26.99936868
B86: =+E!A170 -> 3. Tilikauden tulos / Liikevaihto (%) | C86: =+E!D170 -> 12.53026991 | D86: =+E!E170 -> 13.39372181 | E86: =+E!F170 -> 14.75596329 | F86: =+E!G170 -> 15.8737929 | G86: =+E!H170 -> 20.75463793
B87: =+E!A171 -> 4. Sijoitetun pääoman tuotto-% | D87: =+E!E171 -> 13.39603232 | E87: =+E!F171 -> 16.11608168 | F87: =+E!G171 -> 19.00852805 | G87: =+E!H171 -> 27.02188229
B88: =+E!A172 -> 5. Oman pääoman tuotto-% | D88: =+E!E172 -> 84.95113445 | E88: =+E!F172 -> 55.48631248 | F88: =+E!G172 -> 42.20334008 | G88: =+E!H172 -> 42.71924764
B90: =+E!A174 -> Maksuvalmius
B91: =+E!A175 -> 1. Rahoitustulos / Liikevaihto | C91: =+E!D175 -> 26.26606514 | D91: =+E!E175 -> 26.47543156 | E91: =+E!F175 -> 27.0038072 | F91: =+E!G175 -> 27.53840615 | G91: =+E!H175 -> 27.08086194
B92: =+E!A176 -> 2. Quick ratio | C92: =+E!D176 -> 1.614960369 | D92: =+E!E176 -> 1.706710659 | E92: =+E!F176 -> 1.890056537 | F92: =+E!G176 -> 2.1509673 | G92: =+E!H176 -> 2.341679712
B94: =+E!A178 -> Vakavaraisuus
B95: =+E!A179 -> 1. Omavaraisuusaste | C95: =+E!D179 -> 10.88705007 | D95: =+E!E179 -> 20.8859233 | E95: =+E!F179 -> 33.43279171 | F95: =+E!G179 -> 48.62432154 | G95: =+E!H179 -> 67.6503237
B96: =+E!A180 -> 2. Rahoitustulos / Velat (%) | C96: =+E!D180 -> 19.38398327 | D96: =+E!E180 -> 25.03064039 | E96: =+E!F180 -> 34.34109287 | F96: =+E!G180 -> 51.09211961 | G96: =+E!H180 -> 85.72454076
B98: Rahoitusriski: Taipumus kuulua konkurssiyritysten (1) tai toimivien yritysten (0) joukkoon
B99: =+E!A183 -> 1. Kolmen muuttujan P-luku | C99: =+E!D183 -> 0.5556202437 | D99: =+E!E183 -> 0.4869439785 | E99: =+E!F183 -> 0.4004871679 | F99: =+E!G183 -> 0.3038293826 | G99: =+E!H183 -> 0.2065754273
B102: TULKINTARAPORTTI
C104: =+C4 -> Ennakoidut viisi vuotta:
C105: 1 | D105: 2 | E105: 3 | F105: 4 | G105: 5
B106: Kannattavuus
B107: Käyttökate / Myyntituotot (%) | C107: =+IF(C84>0,"Positiivinen","Negatiivinen") -> Positiivinen | D107: =+IF(D84>0,"Positiivinen","Negatiivinen") -> Positiivinen | E107: =+IF(E84>0,"Positiivinen","Negatiivinen") -> Positiivinen | F107: =+IF(F84>0,"Positiivinen","Negatiivinen") -> Positiivinen | G107: =+IF(G84>0,"Positiivinen","Negatiivinen") -> Positiivinen
B108: Sijoitetun pääoman tuotto-% | D108: =+IF(D87>15,"Erinomainen",IF(D87>10,"Hyvä",IF(D87>6,"Tyydyttävä",IF(D87>3,"Välttävä","Heikko")))) -> Hyvä | E108: =+IF(E87>15,"Erinomainen",IF(E87>10,"Hyvä",IF(E87>6,"Tyydyttävä",IF(E87>3,"Välttävä","Heikko")))) -> Erinomainen | F108: =+IF(F87>15,"Erinomainen",IF(F87>10,"Hyvä",IF(F87>6,"Tyydyttävä",IF(F87>3,"Välttävä","Heikko")))) -> Erinomainen | G108: =+IF(G87>15,"Erinomainen",IF(G87>10,"Hyvä",IF(G87>6,"Tyydyttävä",IF(G87>3,"Välttävä","Heikko")))) -> Erinomainen
B109: Oman pääoman tuotto-% | D109: =+IF(D88="","",IF(D88>20,"Erinomainen",IF(D88>15,"Hyvä",IF(D88>10,"Tyydyttävä",IF(D88>5,"Välttävä","Heikko"))))) -> Erinomainen | E109: =+IF(E88="","",IF(E88>20,"Erinomainen",IF(E88>15,"Hyvä",IF(E88>10,"Tyydyttävä",IF(E88>5,"Välttävä","Heikko"))))) -> Erinomainen | F109: Erinomainen | G109: Erinomainen
B111: Maksuvalmius
B112: Rahoitustulos / Myyntituotot | C112: =+IF(C91>0,"Positiivinen","Negatiivinen") -> Positiivinen | D112: =+IF(D91>0,"Positiivinen","Negatiivinen") -> Positiivinen | E112: =+IF(E91>0,"Positiivinen","Negatiivinen") -> Positiivinen | F112: =+IF(F91>0,"Positiivinen","Negatiivinen") -> Positiivinen | G112: =+IF(G91>0,"Positiivinen","Negatiivinen") -> Positiivinen
B113: Quick ratio | C113: =+IF(C92>1.5,"Erinomainen",IF(C92>1,"Hyvä",IF(C92>0.5,"Tyydyttävä",IF(C92>0.3,"Välttävä","Heikko")))) -> Erinomainen | D113: =+IF(D92>1.5,"Erinomainen",IF(D92>1,"Hyvä",IF(D92>0.5,"Tyydyttävä",IF(D92>0.3,"Välttävä","Heikko")))) -> Erinomainen | E113: =+IF(E92>1.5,"Erinomainen",IF(E92>1,"Hyvä",IF(E92>0.5,"Tyydyttävä",IF(E92>0.3,"Välttävä","Heikko")))) -> Erinomainen | F113: =+IF(F92>1.5,"Erinomainen",IF(F92>1,"Hyvä",IF(F92>0.5,"Tyydyttävä",IF(F92>0.3,"Välttävä","Heikko")))) -> Erinomainen | G113: =+IF(G92>1.5,"Erinomainen",IF(G92>1,"Hyvä",IF(G92>0.5,"Tyydyttävä",IF(G92>0.3,"Välttävä","Heikko")))) -> Erinomainen
B115: Vakavaraisuus
B116: Omavaraisuusaste | C116: =+IF(C95>50,"Erinomainen",IF(C95>35,"Hyvä",IF(C95>25,"Tyydyttävä",IF(C95>15,"Välttävä","Heikko")))) -> Heikko | D116: =+IF(D95>50,"Erinomainen",IF(D95>35,"Hyvä",IF(D95>25,"Tyydyttävä",IF(D95>15,"Välttävä","Heikko")))) -> Välttävä | E116: Tyydyttävä | F116: Hyvä | G116: Erinomainen
B117: Rahoitustulos / Velat (%) | C117: =+IF(1/(C96/100)<1,"Erinomainen",IF(1/(C96/100)<3,"Hyvä",IF(1/(C96/100)<5,"Tyydyttävä",IF(1/(C96/100)<10,"Välttävä","Heikko")))) -> Välttävä | D117: =+IF(1/(D96/100)<1,"Erinomainen",IF(1/(D96/100)<3,"Hyvä",IF(1/(D96/100)<5,"Tyydyttävä",IF(1/(D96/100)<10,"Välttävä","Heikko")))) -> Tyydyttävä | E117: Hyvä | F117: Hyvä | G117: Hyvä
B119: Rahoitusriski
B120: Kolmen muuttujan P-luku | C120: =+IF(C99>0.65,"Erittäin suuri riski",IF(C99>0.45,"Suuri riski",IF(C99>0.25,"Kohtuullinen riski",IF(C99>0.1,"Suhteellisen pieni riski","Pieni riski")))) -> Suuri riski | D120: =+IF(D99>0.65,"Erittäin suuri riski",IF(D99>0.45,"Suuri riski",IF(D99>0.25,"Kohtuullinen riski",IF(D99>0.1,"Suhteellisen pieni riski","Pieni riski")))) -> Suuri riski | E120: Kohtuullinen riski | F120: Kohtuullinen riski | G120: Suhteellisen pieni riski
B123: LIITEKUVIOT
J124: Vuosi | K124: 1 | L124: 2 | M124: 3 | N124: 4 | O124: 5
J125: Käyttökate | K125: =+C31 -> 69210 | L125: =+D31 -> 73330.5 | M125: =+E31 -> 77676.825 | N125: =+F31 -> 82260.86025 | O125: =+G31 -> 87095.10308
J126: Liiketulos | K126: =+C39 -> 39676.66667 | L126: =+D39 -> 43797.16667 | M126: =+E39 -> 48643.49167 | N126: =+F39 -> 53227.52692 | O126: =+G39 -> 70561.76975
J127: Tilikauden tulos | K127: =+C42 -> 26941.33333 | L127: =+D42 -> 30237.73333 | M127: =+E42 -> 34978.79333 | N127: =+F42 -> 39510.02153 | O127: =+G42 -> 54241.4158
J145: Vuosi | K145: 1 | L145: 2 | M145: 3 | N145: 4 | O145: 5
J146: Sijoitetun pääoman tuotto-% | L146: =+D87 -> 13.39603232 | M146: =+E87 -> 16.11608168 | N146: =+F87 -> 19.00852805 | O146: =+G87 -> 27.02188229
J147: Quick ratio | K147: =+C92 -> 1.614960369 | L147: =+D92 -> 1.706710659 | M147: =+E92 -> 1.890056537 | N147: =+F92 -> 2.1509673 | O147: =+G92 -> 2.341679712
J148: Omavaraisuusaste | K148: =+C95 -> 10.88705007 | L148: 20.8859233 | M148: 33.43279171 | N148: 48.62432154 | O148: 67.6503237
J165: Vuosi | K165: 1 | L165: 2 | M165: 3 | N165: 4 | O165: 5
J166: Rahoitusriski | K166: =+C99 -> 0.5556202437 | L166: =+D99 -> 0.4869439785 | M166: 0.4004871679 | N166: 0.3038293826 | O166: 0.2065754273
J167: Kriittinen taso | K167: 0.5 | L167: 0.5 | M167: 0.5 | N167: 0.5 | O167: 0.5
